Workbook

Sheet Heats
A1: Drivers per heat | B1: 4 | E1: Driver | F1: Lane | G1: Laps | H1: Hundredths | I1: Best lap
A2: Drivers | B2: =COUNTIF(A5:A99,"*") -> 8 | E2: Tony S | F2: White | G2: 12 | I2: 5.009
A3: Shuffle | B3: 1 | E3: blank | F3: Blue | G3: 0 | I3: -.---
A4: Names | B4: Chassis | E4: Marc T | F4: Red | G4: 26 | I4: 4.423
A5: Tony S | E5: Andy W | F5: Yellow | G5: 20 | I5: 5.459
A6: blank
A7: Marc T | E7: Driver | F7: Lane | G7: Laps | H7: Hundredths | I7: Best lap
A8: Andy W | E8: blank | F8: White | G8: 0 | I8: -.---
A9: Clive H | E9: Tony S | F9: Blue | G9: 17 | I9: 4.905
A10: Mike D | E10: Andy W | F10: Red | G10: 17 | I10: 5.193
A11: Mike R | E11: Marc T | F11: Yellow | G11: 25 | I11: 4.355
A12: Callum N
E13: Driver | F13: Lane | G13: Laps | H13: Hundredths | I13: Best lap
E14: Clive H | F14: White | G14: 20 | I14: 5.094
E15: Mike D | F15: Blue | G15: 13 | I15: 4.856
E16: Mike R | F16: Red | G16: 17 | I16: 6.441
E17: Callum N | F17: Yellow | G17: 9 | I17: 7.019
E19: Driver | F19: Lane | G19: Laps | H19: Hundredths | I19: Best lap
E20: Mike D | F20: White | G20: 17 | I20: 4.638
E21: Clive H | F21: Blue | G21: 18 | I21: 5.377
E22: Callum N | F22: Red | G22: 16 | I22: 5.58
E23: Mike R | F23: Yellow | G23: 17 | I23: 6.165
E25: Driver | F25: Lane | G25: Laps | H25: Hundredths | I25: Best lap
E26: Marc T | F26: White | G26: 5 | I26: 4.662
E27: Andy W | F27: Blue | G27: 20 | I27: 5.587
E28: Tony S | F28: Red | G28: 15 | I28: 5.215
E29: blank | F29: Yellow | G29: 0 | I29: -.---
E31: Driver | F31: Lane | G31: Laps | H31: Hundredths | I31: Best lap
E32: Andy W | F32: White | G32: 19 | H32: 50 | I32: 5.597
E33: Marc T | F33: Blue | G33: 0 | I33: -.---
E34: blank | F34: Red | G34: 0 | I34: -.---
E35: Tony S | F35: Yellow | G35: 13 | H35: 65 | I35: 5.901
E37: Driver | F37: Lane | G37: Laps | H37: Hundredths | I37: Best lap
E38: Mike R | F38: White | G38: 18 | I38: 5.687
E39: Callum N | F39: Blue | G39: 14 | I39: 5.253
E40: Clive H | F40: Red | G40: 22 | I40: 5.11
E41: Mike D | F41: Yellow | G41: 17 | I41: 4.974
E43: Driver | F43: Lane | G43: Laps | H43: Hundredths | I43: Best lap
E44: Callum N | F44: White | G44: 4 | H44: 95 | I44: 6.318
E45: Mike R | F45: Blue | G45: 18 | H45: 55 | I45: 5.631
E46: Mike D | F46: Red | G46: 21 | H46: 20 | I46: 4.838
E47: Clive H | F47: Yellow | G47: 16 | H47: 55 | I47: 5.549

Sheet Qualifying results
D1: White | F1: Blue | H1: Red | J1: Yellow | L1: Overall
A2: P | C2: =Heats!$B$4 -> Chassis | D2: Laps | E2: Best lap | F2: Laps | G2: Best lap | H2: Laps | I2: Best lap | J2: Laps | K2: Best lap | L2: Total | M2: Drop | N2: Best 3 | O2: Gap | P2: Best lap
A3: 1 | B3: Clive H | C3: =Heats!$B$9 -> 0 | D3: =Heats!$G$14+Heats!$H$14/100 -> 20 | E3: =Heats!$I$14 -> 5.094 | F3: =Heats!$G$21+Heats!$H$21/100 -> 18 | G3: =Heats!$I$21 -> 5.377 | H3: =Heats!$G$40+Heats!$H$40/100 -> 22 | I3: =Heats!$I$40 -> 5.11 | J3: =Heats!$G$47+Heats!$H$47/100 -> 16.55 | K3: =Heats!$I$47 -> 5.549 | L3: =D3+F3+H3+J3 -> 76.55 | M3: =MIN(D3,F3,H3,J3) -> 16.55 | N3: =L3-M3 -> 60 | P3: =IF(MIN(E3,G3,I3,K3)=0, "-.---", MIN(E3,G3,I3,K3)) -> 5.094
A4: 2 | B4: Andy W | C4: =Heats!$B$8 -> 0 | D4: =Heats!$G$32+Heats!$H$32/100 -> 19.5 | E4: =Heats!$I$32 -> 5.597 | F4: =Heats!$G$27+Heats!$H$27/100 -> 20 | G4: =Heats!$I$27 -> 5.587 | H4: =Heats!$G$10+Heats!$H$10/100 -> 17 | I4: =Heats!$I$10 -> 5.193 | J4: =Heats!$G$5+Heats!$H$5/100 -> 20 | K4: =Heats!$I$5 -> 5.459 | L4: =D4+F4+H4+J4 -> 76.5 | M4: =MIN(D4,F4,H4,J4) -> 17 | N4: =L4-M4 -> 59.5 | O4: =N3-N4 -> 0.5 | P4: 5.193
A5: 3 | B5: Mike R | C5: =Heats!$B$11 -> 0 | D5: =Heats!$G$38+Heats!$H$38/100 -> 18 | E5: =Heats!$I$38 -> 5.687 | F5: =Heats!$G$45+Heats!$H$45/100 -> 18.55 | G5: =Heats!$I$45 -> 5.631 | H5: =Heats!$G$16+Heats!$H$16/100 -> 17 | I5: =Heats!$I$16 -> 6.441 | J5: =Heats!$G$23+Heats!$H$23/100 -> 17 | K5: =Heats!$I$23 -> 6.165 | L5: =D5+F5+H5+J5 -> 70.55 | M5: =MIN(D5,F5,H5,J5) -> 17 | N5: =L5-M5 -> 53.55 | O5: =N3-N5 -> 6.45 | P5: 5.631
A6: 4 | B6: Mike D | C6: =Heats!$B$10 -> 0 | D6: =Heats!$G$20+Heats!$H$20/100 -> 17 | E6: =Heats!$I$20 -> 4.638 | F6: =Heats!$G$15+Heats!$H$15/100 -> 13 | G6: =Heats!$I$15 -> 4.856 | H6: =Heats!$G$46+Heats!$H$46/100 -> 21.2 | I6: =Heats!$I$46 -> 4.838 | J6: =Heats!$G$41+Heats!$H$41/100 -> 17 | K6: =Heats!$I$41 -> 4.974 | L6: =D6+F6+H6+J6 -> 68.2 | M6: =MIN(D6,F6,H6,J6) -> 13 | N6: =L6-M6 -> 55.2 | O6: =N3-N6 -> 4.8 | P6: 4.638 | R6: delete drop and best 3
A7: 5 | B7: Tony S | C7: =Heats!$B$5 -> 0 | D7: =Heats!$G$2+Heats!$H$2/100 -> 12 | E7: =Heats!$I$2 -> 5.009 | F7: =Heats!$G$9+Heats!$H$9/100 -> 17 | G7: =Heats!$I$9 -> 4.905 | H7: =Heats!$G$28+Heats!$H$28/100 -> 15 | I7: =Heats!$I$28 -> 5.215 | J7: =Heats!$G$35+Heats!$H$35/100 -> 13.65 | K7: =Heats!$I$35 -> 5.901 | L7: =D7+F7+H7+J7 -> 57.65 | M7: =MIN(D7,F7,H7,J7) -> 12 | N7: =L7-M7 -> 45.65 | O7: =N3-N7 -> 14.35 | P7: 4.905 | R7: Add three laps to each
A8: 6 | B8: Marc T | C8: =Heats!$B$7 -> 0 | D8: =Heats!$G$26+Heats!$H$26/100 -> 5 | E8: =Heats!$I$26 -> 4.662 | F8: =Heats!$G$33+Heats!$H$33/100 -> 0 | G8: =Heats!$I$33 -> -.--- | H8: =Heats!$G$4+Heats!$H$4/100 -> 26 | I8: =Heats!$I$4 -> 4.423 | J8: =Heats!$G$11+Heats!$H$11/100 -> 25 | K8: =Heats!$I$11 -> 4.355 | L8: =D8+F8+H8+J8 -> 56 | M8: =MIN(D8,F8,H8,J8) -> 0 | N8: =L8-M8 -> 56 | O8: =N3-N8 -> 4 | P8: 4.355
A9: 7 | B9: Callum N | C9: =Heats!$B$12 -> 0 | D9: =Heats!$G$44+Heats!$H$44/100 -> 4.95 | E9: =Heats!$I$44 -> 6.318 | F9: =Heats!$G$39+Heats!$H$39/100 -> 14 | G9: =Heats!$I$39 -> 5.253 | H9: =Heats!$G$22+Heats!$H$22/100 -> 16 | I9: =Heats!$I$22 -> 5.58 | J9: =Heats!$G$17+Heats!$H$17/100 -> 9 | K9: =Heats!$I$17 -> 7.019 | L9: =D9+F9+H9+J9 -> 43.95 | M9: =MIN(D9,F9,H9,J9) -> 4.95 | N9: =L9-M9 -> 39 | O9: =N3-N9 -> 21 | P9: 5.253
A10: 8 | B10: blank | C10: =Heats!$B$6 -> 0 | D10: =Heats!$G$8+Heats!$H$8/100 -> 0 | E10: =Heats!$I$8 -> -.--- | F10: =Heats!$G$3+Heats!$H$3/100 -> 0 | G10: =Heats!$I$3 -> -.--- | H10: =Heats!$G$34+Heats!$H$34/100 -> 0 | I10: =Heats!$I$34 -> -.--- | J10: =Heats!$G$29+Heats!$H$29/100 -> 0 | K10: =Heats!$I$29 -> -.--- | L10: =D10+F10+H10+J10 -> 0 | M10: =MIN(D10,F10,H10,J10) -> 0 | N10: =L10-M10 -> 0 | O10: =N3-N10 -> 60 | P10: -.---
A11: 9 | L11: =D11+F11+H11+J11 -> 0 | M11: =MIN(D11,F11,H11,J11) -> 0 | N11: =L11-M11 -> 0 | O11: =N3-N11 -> 60 | P11: -.---
A12: 10 | L12: =D12+F12+H12+J12 -> 0 | M12: =MIN(D12,F12,H12,J12) -> 0 | N12: =L12-M12 -> 0 | O12: =N3-N12 -> 60 | P12: -.---
A13: 11 | L13: 0 | M13: 0 | N13: 0 | O13: =N3-N13 -> 60 | P13: -.---
A14: 12 | L14: 0 | M14: 0 | N14: 0 | O14: =N3-N14 -> 60 | P14: -.---
A15: 13 | L15: 0 | M15: 0 | N15: 0 | O15: =N3-N15 -> 60 | P15: -.---
A16: 14 | L16: 0 | M16: 0 | N16: 0 | O16: =N3-N16 -> 60 | P16: -.---
A17: 15 | L17: 0 | M17: 0 | N17: 0 | O17: =N3-N17 -> 60 | P17: -.---
A18: 16 | L18: 0 | M18: 0 | N18: 0 | O18: =N3-N18 -> 60 | P18: -.---
A19: 17 | L19: 0 | M19: 0 | N19: 0 | O19: =N3-N19 -> 60 | P19: -.---
A20: 18 | L20: 0 | M20: 0 | N20: 0 | O20: =N3-N20 -> 60 | P20: -.---
A21: 19 | L21: 0 | M21: 0 | N21: 0 | O21: =N3-N21 -> 60 | P21: -.---
A22: 20 | L22: 0 | M22: 0 | N22: 0 | O22: =N3-N22 -> 60 | P22: -.---
A23: 21 | L23: 0 | M23: 0 | N23: 0 | O23: =N3-N23 -> 60 | P23: -.---
A24: 22 | L24: 0 | M24: 0 | N24: 0 | O24: =N3-N24 -> 60 | P24: -.---

Sheet Finals
F1: Final | J1: Overall | S1: Best lap time | Y1: Best laps
A2: P | B2: Final | C2: Q | D2: Driver | E2: Chassis | F2: Lane | G2: Laps | H2: Gap | I2: Best lap | J2: Best laps | K2: Best lap | M2: A Final | N2: Lane | O2: laps | P2: tenths | Q2: best Lap | S2: P | T2: Driver | U2: Chassis | V2: best lap | W2: Gap | Y2: P | Z2: Driver | AA2: Chassis | AB2: best laps | AC2: Gap
A3: 1 | B3: A | C3: 1 | D3: ='Qualifying results'!$B$3 -> Clive H | E3: ='Qualifying results'!$C$3 -> 0 | G3: =IF(ISNA(VLOOKUP(F3, $N$3:$Q$6, 2, FALSE)), 0, VLOOKUP(F3, $N$3:$Q$6, 2, FALSE)+VLOOKUP(F3, $N$3:$Q$6, 3, FALSE)/10) -> 0 | I3: =IF(ISNA(VLOOKUP(F3, $N$3:$Q$6, 4, FALSE)), "-.---", VLOOKUP(F3, $N$3:$Q$6, 4, FALSE)) -> -.--- | J3: =MAX(G3,'Qualifying results'!$J$3,'Qualifying results'!$H$3,'Qualifying results'!$F$3,'Qualifying results'!$D$3) -> 22 | K3: =MIN(I3,'Qualifying results'!$K$3,'Qualifying results'!$I$3,'Qualifying results'!$G$3,'Qualifying results'!$E$3) -> 5.094 | N3: W | S3: 1 | T3: =$D$3 -> Clive H | U3: =$E$3 -> 0 | V3: =$K$3 -> 5.094 | Y3: 1 | Z3: =$D$3 -> Clive H | AA3: =$E$3 -> 0 | AB3: =$J$3 -> 22
A4: 2 | B4: A | C4: 2 | D4: ='Qualifying results'!$B$4 -> Andy W | E4: ='Qualifying results'!$C$4 -> 0 | G4: =IF(ISNA(VLOOKUP(F4, $N$3:$Q$6, 2, FALSE)), 0, VLOOKUP(F4, $N$3:$Q$6, 2, FALSE)+VLOOKUP(F4, $N$3:$Q$6, 3, FALSE)/10) -> 0 | I4: =IF(ISNA(VLOOKUP(F4, $N$3:$Q$6, 4, FALSE)), "-.---", VLOOKUP(F4, $N$3:$Q$6, 4, FALSE)) -> -.--- | J4: =MAX(G4,'Qualifying results'!$J$4,'Qualifying results'!$H$4,'Qualifying results'!$F$4,'Qualifying results'!$D$4) -> 20 | K4: =MIN(I4,'Qualifying results'!$K$4,'Qualifying results'!$I$4,'Qualifying results'!$G$4,'Qualifying results'!$E$4) -> 5.193 | N4: B | S4: 2 | T4: =$D$4 -> Andy W | U4: =$E$4 -> 0 | V4: =$K$4 -> 5.193 | W4: =V4-$V$3 -> 0.099 | Y4: 2 | Z4: =$D$4 -> Andy W | AA4: =$E$4 -> 0 | AB4: =$J$4 -> 20 | AC4: =$AB$3-AB4 -> 2
A5: 3 | B5: A | C5: 3 | D5: ='Qualifying results'!$B$5 -> Mike R | E5: ='Qualifying results'!$C$5 -> 0 | G5: =IF(ISNA(VLOOKUP(F5, $N$3:$Q$6, 2, FALSE)), 0, VLOOKUP(F5, $N$3:$Q$6, 2, FALSE)+VLOOKUP(F5, $N$3:$Q$6, 3, FALSE)/10) -> 0 | I5: =IF(ISNA(VLOOKUP(F5, $N$3:$Q$6, 4, FALSE)), "-.---", VLOOKUP(F5, $N$3:$Q$6, 4, FALSE)) -> -.--- | J5: =MAX(G5,'Qualifying results'!$J$5,'Qualifying results'!$H$5,'Qualifying results'!$F$5,'Qualifying results'!$D$5) -> 18.55 | K5: =MIN(I5,'Qualifying results'!$K$5,'Qualifying results'!$I$5,'Qualifying results'!$G$5,'Qualifying results'!$E$5) -> 5.631 | N5: R | S5: 3 | T5: =$D$5 -> Mike R | U5: =$E$5 -> 0 | V5: =$K$5 -> 5.631 | W5: 0.537 | Y5: 3 | Z5: =$D$5 -> Mike R | AA5: =$E$5 -> 0 | AB5: =$J$5 -> 18.55 | AC5: 3.45
A6: 4 | B6: A | C6: =$C$7 -> 4 | D6: =$D$7 -> Mike D | E6: =$E$7 -> 0 | G6: =IF(ISNA(VLOOKUP(F6, $N$3:$Q$6, 2, FALSE)), 0, VLOOKUP(F6, $N$3:$Q$6, 2, FALSE)+VLOOKUP(F6, $N$3:$Q$6, 3, FALSE)/10) -> 0 | I6: =IF(ISNA(VLOOKUP(F6, $N$3:$Q$6, 4, FALSE)), "-.---", VLOOKUP(F6, $N$3:$Q$6, 4, FALSE)) -> -.--- | J6: =MAX(G6,$J$7) -> 21.2 | K6: =MIN(I6,$K$7) -> 4.638 | N6: Y | S6: 4 | T6: =$D$6 -> Mike D | U6: =$E$6 -> 0 | V6: =$K$6 -> 4.638 | W6: -0.456 | Y6: 4 | Z6: =$D$6 -> Mike D | AA6: =$E$6 -> 0 | AB6: =$J$6 -> 21.2 | AC6: 0.8
A7: - | B7: B | C7: 4 | D7: ='Qualifying results'!$B$6 -> Mike D | E7: ='Qualifying results'!$C$6 -> 0 | G7: =IF(ISNA(VLOOKUP(F7, $N$7:$Q$10, 2, FALSE)), 0, VLOOKUP(F7, $N$7:$Q$10, 2, FALSE)+VLOOKUP(F7, $N$7:$Q$10, 3, FALSE)/10) -> 0 | I7: =IF(ISNA(VLOOKUP(F7, $N$7:$Q$10, 4, FALSE)), "-.---", VLOOKUP(F7, $N$7:$Q$10, 4, FALSE)) -> -.--- | J7: =MAX(G7,'Qualifying results'!$J$6,'Qualifying results'!$H$6,'Qualifying results'!$F$6,'Qualifying results'!$D$6) -> 21.2 | K7: =MIN(I7,'Qualifying results'!$K$6,'Qualifying results'!$I$6,'Qualifying results'!$G$6,'Qualifying results'!$E$6) -> 4.638 | M7: B Final | N7: W | S7: 5 | T7: =$D$8 -> Tony S | U7: =$E$8 -> 0 | V7: =$K$8 -> 4.905 | W7: -0.189 | Y7: 5 | Z7: =$D$8 -> Tony S | AA7: =$E$8 -> 0 | AB7: =$J$8 -> 17 | AC7: 5
A8: 5 | B8: B | C8: 5 | D8: ='Qualifying results'!$B$7 -> Tony S | E8: ='Qualifying results'!$C$7 -> 0 | G8: =IF(ISNA(VLOOKUP(F8, $N$7:$Q$10, 2, FALSE)), 0, VLOOKUP(F8, $N$7:$Q$10, 2, FALSE)+VLOOKUP(F8, $N$7:$Q$10, 3, FALSE)/10) -> 0 | I8: =IF(ISNA(VLOOKUP(F8, $N$7:$Q$10, 4, FALSE)), "-.---", VLOOKUP(F8, $N$7:$Q$10, 4, FALSE)) -> -.--- | J8: =MAX(G8,'Qualifying results'!$J$7,'Qualifying results'!$H$7,'Qualifying results'!$F$7,'Qualifying results'!$D$7) -> 17 | K8: =MIN(I8,'Qualifying results'!$K$7,'Qualifying results'!$I$7,'Qualifying results'!$G$7,'Qualifying results'!$F$7) -> 4.905 | N8: B | S8: 6 | T8: =$D$9 -> Marc T | U8: =$E$9 -> 0 | V8: =$K$9 -> 4.355 | W8: -0.739 | Y8: 6 | Z8: =$D$9 -> Marc T | AA8: =$E$9 -> 0 | AB8: =$J$9 -> 26 | AC8: -4
A9: 6 | B9: B | C9: 6 | D9: ='Qualifying results'!$B$8 -> Marc T | E9: ='Qualifying results'!$C$8 -> 0 | G9: =IF(ISNA(VLOOKUP(F9, $N$7:$Q$10, 2, FALSE)), 0, VLOOKUP(F9, $N$7:$Q$10, 2, FALSE)+VLOOKUP(F9, $N$7:$Q$10, 3, FALSE)/10) -> 0 | I9: =IF(ISNA(VLOOKUP(F9, $N$7:$Q$10, 4, FALSE)), "-.---", VLOOKUP(F9, $N$7:$Q$10, 4, FALSE)) -> -.--- | J9: =MAX(G9,'Qualifying results'!$J$8,'Qualifying results'!$H$8,'Qualifying results'!$F$8,'Qualifying results'!$D$8) -> 26 | K9: =MIN(I9,'Qualifying results'!$K$8,'Qualifying results'!$I$8,'Qualifying results'!$G$8,'Qualifying results'!$E$8) -> 4.355 | N9: R | S9: 7 | T9: =$D$10 -> Callum N | U9: =$E$10 -> 0 | V9: =$K$10 -> 5.253 | W9: 0.159 | Y9: 7 | Z9: =$D$10 -> Callum N | AA9: =$E$10 -> 0 | AB9: =$J$10 -> 16 | AC9: 6
A10: 7 | B10: B | C10: =$C$11 -> 7 | D10: =$D$11 -> Callum N | E10: =$E$11 -> 0 | G10: =IF(ISNA(VLOOKUP(F10, $N$7:$Q$10, 2, FALSE)), 0, VLOOKUP(F10, $N$7:$Q$10, 2, FALSE)+VLOOKUP(F10, $N$7:$Q$10, 3, FALSE)/10) -> 0 | I10: =IF(ISNA(VLOOKUP(F10, $N$7:$Q$10, 4, FALSE)), "-.---", VLOOKUP(F10, $N$7:$Q$10, 4, FALSE)) -> -.--- | J10: =MAX(G10,$J$11) -> 16 | K10: =MIN(I10,$K$11) -> 5.253 | N10: Y | S10: 8 | T10: =$D$12 -> blank | U10: =$E$12 -> 0 | V10: =$K$12 -> 0 | W10: -5.094 | Y10: 8 | Z10: =$D$12 -> blank | AA10: =$E$12 -> 0 | AB10: =$J$12 -> 0 | AC10: 22
A11: - | B11: C | C11: 7 | D11: ='Qualifying results'!$B$9 -> Callum N | E11: ='Qualifying results'!$C$9 -> 0 | G11: =IF(ISNA(VLOOKUP(F11, $N$11:$Q$14, 2, FALSE)), 0, VLOOKUP(F11, $N$11:$Q$14, 2, FALSE)+VLOOKUP(F11, $N$11:$Q$14, 3, FALSE)/10) -> 0 | I11: =IF(ISNA(VLOOKUP(F11, $N$11:$Q$14, 4, FALSE)), "-.---", VLOOKUP(F11, $N$11:$Q$14, 4, FALSE)) -> -.--- | J11: =MAX(G11,'Qualifying results'!$J$9,'Qualifying results'!$H$9,'Qualifying results'!$F$9,'Qualifying results'!$D$9) -> 16 | K11: =MIN(I11,'Qualifying results'!$K$9,'Qualifying results'!$I$9,'Qualifying results'!$G$9,'Qualifying results'!$E$9) -> 5.253 | M11: C Final | N11: W | S11: 9 | T11: =$D$13 -> 0 | U11: =$E$13 -> 0 | V11: =$K$13 -> 0 | W11: -5.094 | Y11: 9 | Z11: =$D$13 -> 0 | AA11: =$E$13 -> 0 | AB11: =$J$13 -> 0 | AC11: 22
A12: 8 | B12: C | C12: 8 | D12: ='Qualifying results'!$B$10 -> blank | E12: ='Qualifying results'!$C$10 -> 0 | G12: =IF(ISNA(VLOOKUP(F12, $N$11:$Q$14, 2, FALSE)), 0, VLOOKUP(F12, $N$11:$Q$14, 2, FALSE)+VLOOKUP(F12, $N$11:$Q$14, 3, FALSE)/10) -> 0 | I12: =IF(ISNA(VLOOKUP(F12, $N$11:$Q$14, 4, FALSE)), "-.---", VLOOKUP(F12, $N$11:$Q$14, 4, FALSE)) -> -.--- | J12: =MAX(G12,'Qualifying results'!$J$10,'Qualifying results'!$H$10,'Qualifying results'!$F$10,'Qualifying results'!$D$10) -> 0 | K12: =MIN(I12,'Qualifying results'!$K$10,'Qualifying results'!$I$10,'Qualifying results'!$G$10,'Qualifying results'!$E$10) -> 0 | N12: B | S12: 10 | T12: =$D$14 -> 0 | U12: =$E$14 -> 0 | V12: =$K$14 -> 0 | W12: -5.094 | Y12: 10 | Z12: =$D$14 -> 0 | AA12: =$E$14 -> 0 | AB12: =$J$14 -> 0 | AC12: 22
A13: 9 | B13: C | C13: 9 | D13: ='Qualifying results'!$B$11 -> 0 | E13: ='Qualifying results'!$C$11 -> 0 | G13: =IF(ISNA(VLOOKUP(F13, $N$11:$Q$14, 2, FALSE)), 0, VLOOKUP(F13, $N$11:$Q$14, 2, FALSE)+VLOOKUP(F13, $N$11:$Q$14, 3, FALSE)/10) -> 0 | I13: =IF(ISNA(VLOOKUP(F13, $N$11:$Q$14, 4, FALSE)), "-.---", VLOOKUP(F13, $N$11:$Q$14, 4, FALSE)) -> -.--- | J13: =MAX(G13,'Qualifying results'!$J$11,'Qualifying results'!$H$11,'Qualifying results'!$F$11,'Qualifying results'!$D$11) -> 0 | K13: =MIN(I13,'Qualifying results'!$K$11,'Qualifying results'!$I$11,'Qualifying results'!$G$11,'Qualifying results'!$E$11) -> 0 | N13: R | S13: 11 | T13: =$D$16 -> 0 | U13: =$E$16 -> 0 | V13: =$K$16 -> 0 | W13: -5.094 | Y13: 11 | Z13: =$D$16 -> 0 | AA13: =$E$16 -> 0 | AB13: =$J$16 -> 0 | AC13: 22
A14: 10 | B14: C | C14: =$C$15 -> 10 | D14: =$D$15 -> 0 | E14: =$E$15 -> 0 | G14: =IF(ISNA(VLOOKUP(F14, $N$11:$Q$14, 2, FALSE)), 0, VLOOKUP(F14, $N$11:$Q$14, 2, FALSE)+VLOOKUP(F14, $N$11:$Q$14, 3, FALSE)/10) -> 0 | I14: =IF(ISNA(VLOOKUP(F14, $N$11:$Q$14, 4, FALSE)), "-.---", VLOOKUP(F14, $N$11:$Q$14, 4, FALSE)) -> -.--- | J14: =MAX(G14,$J$15) -> 0 | K14: =MIN(I14,$K$15) -> 0 | N14: Y | S14: 12 | T14: =$D$17 -> 0 | U14: =$E$17 -> 0 | V14: =$K$17 -> 0 | W14: -5.094 | Y14: 12 | Z14: =$D$17 -> 0 | AA14: =$E$17 -> 0 | AB14: =$J$17 -> 0 | AC14: 22
A15: - | B15: D | C15: 10 | D15: ='Qualifying results'!$B$12 -> 0 | E15: ='Qualifying results'!$C$12 -> 0 | G15: =IF(ISNA(VLOOKUP(F15, $N$15:$Q$18, 2, FALSE)), 0, VLOOKUP(F15, $N$15:$Q$18, 2, FALSE)+VLOOKUP(F15, $N$15:$Q$18, 3, FALSE)/10) -> 0 | I15: =IF(ISNA(VLOOKUP(F15, $N$15:$Q$18, 4, FALSE)), "-.---", VLOOKUP(F15, $N$15:$Q$18, 4, FALSE)) -> -.--- | J15: =MAX(G15,'Qualifying results'!$J$12,'Qualifying results'!$H$12,'Qualifying results'!$F$12,'Qualifying results'!$D$12) -> 0 | K15: =MIN(I15,'Qualifying results'!$K$12,'Qualifying results'!$I$12,'Qualifying results'!$G$12,'Qualifying results'!$E$12) -> 0 | M15: D Final | N15: W | S15: 13 | T15: =$D$18 -> 0 | U15: =$E$18 -> 0 | V15: =$K$18 -> 0 | W15: -5.094 | Y15: 13 | Z15: =$D$18 -> 0 | AA15: =$E$18 -> 0 | AB15: =$J$18 -> 0 | AC15: 22
A16: 11 | B16: D | C16: 11 | D16: ='Qualifying results'!$B$13 -> 0 | E16: ='Qualifying results'!$C$13 -> 0 | G16: =IF(ISNA(VLOOKUP(F16, $N$15:$Q$18, 2, FALSE)), 0, VLOOKUP(F16, $N$15:$Q$18, 2, FALSE)+VLOOKUP(F16, $N$15:$Q$18, 3, FALSE)/10) -> 0 | I16: =IF(ISNA(VLOOKUP(F16, $N$15:$Q$18, 4, FALSE)), "-.---", VLOOKUP(F16, $N$15:$Q$18, 4, FALSE)) -> -.--- | J16: =MAX(G16,'Qualifying results'!$J$13,'Qualifying results'!$H$13,'Qualifying results'!$F$13,'Qualifying results'!$D$13) -> 0 | K16: =MIN(I16,'Qualifying results'!$K$13,'Qualifying results'!$I$13,'Qualifying results'!$G$13,'Qualifying results'!$E$13) -> 0 | N16: B | S16: 14 | T16: =$D$20 -> 0 | U16: =$E$20 -> 0 | V16: =$K$20 -> 0 | W16: -5.094 | Y16: 14 | Z16: =$D$20 -> 0 | AA16: =$E$20 -> 0 | AB16: =$J$20 -> 0 | AC16: 22
A17: 12 | B17: D | C17: 12 | D17: ='Qualifying results'!$B$14 -> 0 | E17: ='Qualifying results'!$C$14 -> 0 | G17: =IF(ISNA(VLOOKUP(F17, $N$15:$Q$18, 2, FALSE)), 0, VLOOKUP(F17, $N$15:$Q$18, 2, FALSE)+VLOOKUP(F17, $N$15:$Q$18, 3, FALSE)/10) -> 0 | I17: =IF(ISNA(VLOOKUP(F17, $N$15:$Q$18, 4, FALSE)), "-.---", VLOOKUP(F17, $N$15:$Q$18, 4, FALSE)) -> -.--- | J17: =MAX(G17,'Qualifying results'!$J$14,'Qualifying results'!$H$14,'Qualifying results'!$F$14,'Qualifying results'!$D$14) -> 0 | K17: =MIN(I17,'Qualifying results'!$K$14,'Qualifying results'!$I$14,'Qualifying results'!$G$14,'Qualifying results'!$E$14) -> 0 | N17: R | S17: 15 | T17: =$D$21 -> 0 | U17: =$E$21 -> 0 | V17: =$K$21 -> 0 | W17: -5.094 | Y17: 15 | Z17: =$D$21 -> 0 | AA17: =$E$21 -> 0 | AB17: =$J$21 -> 0 | AC17: 22
A18: 13 | B18: D | C18: =$C$19 -> 13 | D18: =$D$19 -> 0 | E18: =$E$19 -> 0 | G18: =IF(ISNA(VLOOKUP(F18, $N$15:$Q$18, 2, FALSE)), 0, VLOOKUP(F18, $N$15:$Q$18, 2, FALSE)+VLOOKUP(F18, $N$15:$Q$18, 3, FALSE)/10) -> 0 | I18: =IF(ISNA(VLOOKUP(F18, $N$15:$Q$18, 4, FALSE)), "-.---", VLOOKUP(F18, $N$15:$Q$18, 4, FALSE)) -> -.--- | J18: =MAX(G18,$J$19) -> 0 | K18: =MIN(I18,$K$19) -> 0 | N18: Y | S18: 16 | T18: =$D$22 -> 0 | U18: =$E$22 -> 0 | V18: =$K$22 -> 0 | W18: -5.094 | Y18: 16 | Z18: =$D$22 -> 0 | AA18: =$E$22 -> 0 | AB18: =$J$22 -> 0 | AC18: 22
A19: - | B19: E | C19: 13 | D19: ='Qualifying results'!$B$15 -> 0 | E19: ='Qualifying results'!$C$15 -> 0 | G19: =IF(ISNA(VLOOKUP(F19, $N$19:$Q$22, 2, FALSE)), 0, VLOOKUP(F19, $N$19:$Q$22, 2, FALSE)+VLOOKUP(F19, $N$19:$Q$22, 3, FALSE)/10) -> 0 | I19: =IF(ISNA(VLOOKUP(F19, $N$19:$Q$22, 4, FALSE)), "-.---", VLOOKUP(F19, $N$19:$Q$22, 4, FALSE)) -> -.--- | J19: =MAX(G19,'Qualifying results'!$J$15,'Qualifying results'!$H$15,'Qualifying results'!$F$15,'Qualifying results'!$D$15) -> 0 | K19: =MIN(I19,'Qualifying results'!$K$15,'Qualifying results'!$I$15,'Qualifying results'!$G$15,'Qualifying results'!$E$15) -> 0 | M19: E Final | N19: W | S19: 17 | T19: =$D$24 -> 0 | U19: =$E$24 -> 0 | V19: =$K$24 -> 0 | W19: -5.094 | Y19: 17 | Z19: =$D$24 -> 0 | AA19: =$E$24 -> 0 | AB19: =$J$24 -> 0 | AC19: 22
A20: 14 | B20: E | C20: 14 | D20: ='Qualifying results'!$B$16 -> 0 | E20: ='Qualifying results'!$C$16 -> 0 | G20: =IF(ISNA(VLOOKUP(F20, $N$19:$Q$22, 2, FALSE)), 0, VLOOKUP(F20, $N$19:$Q$22, 2, FALSE)+VLOOKUP(F20, $N$19:$Q$22, 3, FALSE)/10) -> 0 | I20: =IF(ISNA(VLOOKUP(F20, $N$19:$Q$22, 4, FALSE)), "-.---", VLOOKUP(F20, $N$19:$Q$22, 4, FALSE)) -> -.--- | J20: =MAX(G20,'Qualifying results'!$J$16,'Qualifying results'!$H$16,'Qualifying results'!$F$16,'Qualifying results'!$D$16) -> 0 | K20: =MIN(I20,'Qualifying results'!$K$16,'Qualifying results'!$I$16,'Qualifying results'!$G$16,'Qualifying results'!$E$16) -> 0 | N20: B | S20: 18 | T20: =$D$25 -> 0 | U20: =$E$25 -> 0 | V20: =$K$25 -> 0 | W20: -5.094 | Y20: 18 | Z20: =$D$25 -> 0 | AA20: =$E$25 -> 0 | AB20: =$J$25 -> 0 | AC20: 22
A21: 15 | B21: E | C21: 15 | D21: ='Qualifying results'!$B$17 -> 0 | E21: ='Qualifying results'!$C$17 -> 0 | G21: =IF(ISNA(VLOOKUP(F21, $N$19:$Q$22, 2, FALSE)), 0, VLOOKUP(F21, $N$19:$Q$22, 2, FALSE)+VLOOKUP(F21, $N$19:$Q$22, 3, FALSE)/10) -> 0 | I21: =IF(ISNA(VLOOKUP(F21, $N$19:$Q$22, 4, FALSE)), "-.---", VLOOKUP(F21, $N$19:$Q$22, 4, FALSE)) -> -.--- | J21: =MAX(G21,'Qualifying results'!$J$17,'Qualifying results'!$H$17,'Qualifying results'!$F$17,'Qualifying results'!$D$17) -> 0 | K21: =MIN(I21,'Qualifying results'!$K$17,'Qualifying results'!$I$17,'Qualifying results'!$G$17,'Qualifying results'!$E$17) -> 0 | N21: R | S21: 19 | T21: =$D$26 -> 0 | U21: =$E$26 -> 0 | V21: =$K$26 -> 0 | W21: -5.094 | Y21: 19 | Z21: =$D$26 -> 0 | AA21: =$E$26 -> 0 | AB21: =$J$26 -> 0 | AC21: 22
A22: 16 | B22: E | C22: =$C$23 -> 16 | D22: =$D$23 -> 0 | E22: =$E$23 -> 0 | G22: =IF(ISNA(VLOOKUP(F22, $N$19:$Q$22, 2, FALSE)), 0, VLOOKUP(F22, $N$19:$Q$22, 2, FALSE)+VLOOKUP(F22, $N$19:$Q$22, 3, FALSE)/10) -> 0 | I22: =IF(ISNA(VLOOKUP(F22, $N$19:$Q$22, 4, FALSE)), "-.---", VLOOKUP(F22, $N$19:$Q$22, 4, FALSE)) -> -.--- | J22: =MAX(G22,$J$23) -> 0 | K22: =MIN(I22,$K$23) -> 0 | N22: Y | S22: 20 | T22: =$D$28 -> 0 | U22: =$E$28 -> 0 | V22: =$K$28 -> 0 | W22: -5.094 | Y22: 20 | Z22: =$D$28 -> 0 | AA22: =$E$28 -> 0 | AB22: =$J$28 -> 0 | AC22: 22
A23: - | B23: F | C23: 16 | D23: ='Qualifying results'!$B$18 -> 0 | E23: ='Qualifying results'!$C$18 -> 0 | G23: =IF(ISNA(VLOOKUP(F23, $N$23:$Q$26, 2, FALSE)), 0, VLOOKUP(F23, $N$23:$Q$26, 2, FALSE)+VLOOKUP(F23, $N$23:$Q$26, 3, FALSE)/10) -> 0 | I23: =IF(ISNA(VLOOKUP(F23, $N$23:$Q$26, 4, FALSE)), "-.---", VLOOKUP(F23, $N$23:$Q$26, 4, FALSE)) -> -.--- | J23: =MAX(G23,'Qualifying results'!$J$18,'Qualifying results'!$H$18,'Qualifying results'!$F$18,'Qualifying results'!$D$18) -> 0 | K23: =MIN(I23,'Qualifying results'!$K$18,'Qualifying results'!$I$18,'Qualifying results'!$G$18,'Qualifying results'!$E$18) -> 0 | M23: F Final | N23: W | S23: 21 | T23: =$D$29 -> 0 | U23: =$E$29 -> 0 | V23: =$K$29 -> 0 | W23: -5.094 | Y23: 21 | Z23: =$D$29 -> 0 | AA23: =$E$29 -> 0 | AB23: =$J$29 -> 0 | AC23: 22
A24: 17 | B24: F | C24: 17 | D24: ='Qualifying results'!$B$19 -> 0 | E24: ='Qualifying results'!$C$19 -> 0 | G24: =IF(ISNA(VLOOKUP(F24, $N$23:$Q$26, 2, FALSE)), 0, VLOOKUP(F24, $N$23:$Q$26, 2, FALSE)+VLOOKUP(F24, $N$23:$Q$26, 3, FALSE)/10) -> 0 | I24: =IF(ISNA(VLOOKUP(F24, $N$23:$Q$26, 4, FALSE)), "-.---", VLOOKUP(F24, $N$23:$Q$26, 4, FALSE)) -> -.--- | J24: =MAX(G24,'Qualifying results'!$J$19,'Qualifying results'!$H$19,'Qualifying results'!$F$19,'Qualifying results'!$D$19) -> 0 | K24: =MIN(I24,'Qualifying results'!$K$19,'Qualifying results'!$I$19,'Qualifying results'!$G$19,'Qualifying results'!$E$19) -> 0 | N24: B | S24: 22 | T24: =$D$30 -> 0 | U24: =$E$30 -> 0 | V24: =$K$30 -> 0 | W24: -5.094 | Y24: 22 | Z24: =$D$30 -> 0 | AA24: =$E$30 -> 0 | AB24: =$J$30 -> 0 | AC24: 22
A25: 18 | B25: F | C25: 18 | D25: ='Qualifying results'!$B$20 -> 0 | E25: ='Qualifying results'!$C$20 -> 0 | G25: =IF(ISNA(VLOOKUP(F25, $N$23:$Q$26, 2, FALSE)), 0, VLOOKUP(F25, $N$23:$Q$26, 2, FALSE)+VLOOKUP(F25, $N$23:$Q$26, 3, FALSE)/10) -> 0 | I25: =IF(ISNA(VLOOKUP(F25, $N$23:$Q$26, 4, FALSE)), "-.---", VLOOKUP(F25, $N$23:$Q$26, 4, FALSE)) -> -.--- | J25: =MAX(G25,'Qualifying results'!$J$20,'Qualifying results'!$H$20,'Qualifying results'!$F$20,'Qualifying results'!$D$20) -> 0 | K25: =MIN(I25,'Qualifying results'!$K$20,'Qualifying results'!$I$20,'Qualifying results'!$G$20,'Qualifying results'!$E$20) -> 0 | N25: R
A26: 19 | B26: F | C26: =$C$27 -> 19 | D26: =$D$27 -> 0 | E26: =$E$27 -> 0 | G26: =IF(ISNA(VLOOKUP(F26, $N$23:$Q$26, 2, FALSE)), 0, VLOOKUP(F26, $N$23:$Q$26, 2, FALSE)+VLOOKUP(F26, $N$23:$Q$26, 3, FALSE)/10) -> 0 | I26: =IF(ISNA(VLOOKUP(F26, $N$23:$Q$26, 4, FALSE)), "-.---", VLOOKUP(F26, $N$23:$Q$26, 4, FALSE)) -> -.--- | J26: =MAX(G26,$J$27) -> 0 | K26: =MIN(I26,$K$27) -> 0 | N26: Y
A27: - | B27: G | C27: 19 | D27: ='Qualifying results'!$B$21 -> 0 | E27: ='Qualifying results'!$C$21 -> 0 | G27: =IF(ISNA(VLOOKUP(F27, $N$27:$Q$30, 2, FALSE)), 0, VLOOKUP(F27, $N$27:$Q$30, 2, FALSE)+VLOOKUP(F27, $N$27:$Q$30, 3, FALSE)/10) -> 0 | I27: =IF(ISNA(VLOOKUP(F27, $N$27:$Q$30, 4, FALSE)), "-.---", VLOOKUP(F27, $N$27:$Q$30, 4, FALSE)) -> -.--- | J27: =MAX(G27,'Qualifying results'!$J$21,'Qualifying results'!$H$21,'Qualifying results'!$F$21,'Qualifying results'!$D$21) -> 0 | K27: =MIN(I27,'Qualifying results'!$K$21,'Qualifying results'!$I$21,'Qualifying results'!$G$21,'Qualifying results'!$E$21) -> 0 | M27: G Final | N27: W
A28: 20 | B28: G | C28: 20 | D28: ='Qualifying results'!$B$22 -> 0 | E28: ='Qualifying results'!$C$22 -> 0 | G28: =IF(ISNA(VLOOKUP(F28, $N$27:$Q$30, 2, FALSE)), 0, VLOOKUP(F28, $N$27:$Q$30, 2, FALSE)+VLOOKUP(F28, $N$27:$Q$30, 3, FALSE)/10) -> 0 | I28: =IF(ISNA(VLOOKUP(F28, $N$27:$Q$30, 4, FALSE)), "-.---", VLOOKUP(F28, $N$27:$Q$30, 4, FALSE)) -> -.--- | J28: =MAX(G28,'Qualifying results'!$J$22,'Qualifying results'!$H$22,'Qualifying results'!$F$22,'Qualifying results'!$D$22) -> 0 | K28: =MIN(I28,'Qualifying results'!$K$22,'Qualifying results'!$I$22,'Qualifying results'!$G$22,'Qualifying results'!$E$22) -> 0 | N28: B
A29: 21 | B29: G | C29: 21 | D29: ='Qualifying results'!$B$23 -> 0 | E29: ='Qualifying results'!$C$23 -> 0 | G29: =IF(ISNA(VLOOKUP(F29, $N$27:$Q$30, 2, FALSE)), 0, VLOOKUP(F29, $N$27:$Q$30, 2, FALSE)+VLOOKUP(F29, $N$27:$Q$30, 3, FALSE)/10) -> 0 | I29: =IF(ISNA(VLOOKUP(F29, $N$27:$Q$30, 4, FALSE)), "-.---", VLOOKUP(F29, $N$27:$Q$30, 4, FALSE)) -> -.--- | J29: =MAX(G29,'Qualifying results'!$J$23,'Qualifying results'!$H$23,'Qualifying results'!$F$23,'Qualifying results'!$D$23) -> 0 | K29: =MIN(I29,'Qualifying results'!$K$23,'Qualifying results'!$I$23,'Qualifying results'!$G$23,'Qualifying results'!$E$23) -> 0 | N29: R
A30: 22 | B30: G | C30: 22 | D30: ='Qualifying results'!$B$24 -> 0 | E30: ='Qualifying results'!$C$24 -> 0 | G30: =IF(ISNA(VLOOKUP(F30, $N$27:$Q$30, 2, FALSE)), 0, VLOOKUP(F30, $N$27:$Q$30, 2, FALSE)+VLOOKUP(F30, $N$27:$Q$30, 3, FALSE)/10) -> 0 | I30: =IF(ISNA(VLOOKUP(F30, $N$27:$Q$30, 4, FALSE)), "-.---", VLOOKUP(F30, $N$27:$Q$30, 4, FALSE)) -> -.--- | J30: =MAX(G30,'Qualifying results'!$J$24,'Qualifying results'!$H$24,'Qualifying results'!$F$24,'Qualifying results'!$D$24) -> 0 | K30: =MIN(I30,'Qualifying results'!$K$24,'Qualifying results'!$I$24,'Qualifying results'!$G$24,'Qualifying results'!$E$24) -> 0 | N30: Y

Sheet Settings
A1: Lanes | B1: =COUNTIF(A3:A10,"*") -> 4
A2: Colours
A3: White
A4: Blue
A5: Red
A6: Yellow
